[Event "Titled Tuesday Blitz January 17 Late 2023"]
[White "Danielyan, Vahe"]
[Black "Tari, Aryan"]
[WhiteFideId "13304828"]
[BlackFideId "1510045"]
[WhiteElo "2346"]
[BlackElo "2642"]
[Result "0-1"]
[Round "01"]
[TimeControl "180+2"]
[Date "2023.01.17"]
[WhiteClock "0:00:28"]
[BlackClock "0:00:18"]

1. e4 {[%clk 0:02:36]}  e5 {[%clk 0:02:58]} 2. Nc3 {[%clk 0:02:37]}  Nf6 {[%clk 0:02:58]} 3. Nf3 {[%clk 0:02:38]}  Nc6 {[%clk 0:02:57]} 4. Bb5 {[%clk 0:02:34]}  Nd4 {[%clk 0:02:57]} 5. O-O {[%clk 0:02:33]}  Nxb5 {[%clk 0:02:56]} 6. Nxb5 {[%clk 0:02:33]}  c6 {[%clk 0:02:57]} 7. Nc3 {[%clk 0:02:33]}  d6 {[%clk 0:02:58]} 8. d4 {[%clk 0:02:34]}  Qc7 {[%clk 0:02:58]} 9. h3 {[%clk 0:02:33]}  Be7 {[%clk 0:02:58]} 10. a4 {[%clk 0:02:34]}  a5 {[%clk 0:02:56]} 11. Bg5 {[%clk 0:02:34]}  O-O {[%clk 0:02:54]} 12. Bxf6 {[%clk 0:02:33]}  Bxf6 {[%clk 0:02:54]} 13. d5 {[%clk 0:02:34]}  Be7 {[%clk 0:02:48]} 14. Qd3 {[%clk 0:02:34]}  Kh8 {[%clk 0:02:40]} 15. Rfd1 {[%clk 0:02:34]}  f5 {[%clk 0:02:40]} 16. Nd2 {[%clk 0:02:22]}  fxe4 {[%clk 0:02:36]} 17. Ndxe4 {[%clk 0:02:22]}  Bf5 {[%clk 0:02:36]} 18. Qe2 {[%clk 0:02:20]}  Bg6 {[%clk 0:02:29]} 19. Rd2 {[%clk 0:02:16]}  Rf4 {[%clk 0:02:26]} 20. f3 {[%clk 0:02:13]}  Raf8 {[%clk 0:02:14]} 21. Rad1 {[%clk 0:02:11]}  h6 {[%clk 0:01:41]} 22. dxc6 {[%clk 0:02:08]}  bxc6 {[%clk 0:01:41]} 23. Nxd6 {[%clk 0:02:08]}  Qb6+ {[%clk 0:01:41]} 24. Kh1 {[%clk 0:02:08]}  Qxb2 {[%clk 0:01:40]} 25. Nce4 {[%clk 0:02:02]}  Bxd6 {[%clk 0:01:22]} 26. Nxd6 {[%clk 0:01:59]}  e4 {[%clk 0:01:04]} 27. fxe4 {[%clk 0:01:44]}  Qe5 {[%clk 0:00:48]} 28. Nc4 {[%clk 0:01:42]}  Qc5 {[%clk 0:00:48]} 29. Nd6 {[%clk 0:01:21]}  Bh5 {[%clk 0:00:41]} 30. g4 {[%clk 0:01:07]}  Rf2 {[%clk 0:00:41]} 31. Qe1 {[%clk 0:00:50]}  R2f3 {[%clk 0:00:38]} 32. Rh2 {[%clk 0:00:44]}  Bg6 {[%clk 0:00:23]} 33. Nf5 {[%clk 0:00:45]}  Bxf5 {[%clk 0:00:23]} 34. gxf5 {[%clk 0:00:46]}  Qe5 {[%clk 0:00:19]} 35. Rd3 {[%clk 0:00:35]}  R3xf5 {[%clk 0:00:18]} 36. Rg2 {[%clk 0:00:28]}  Rf1+ {[%clk 0:00:18]} 0-1


[Site "https://www.chess.com"]

[Event "Titled Tuesday Blitz January 17 Late 2023"]
[White "Rasulov, Vugar"]
[Black "Kuznecovs, Nikita"]
[WhiteFideId "13402390"]
[BlackFideId "11604557"]
[WhiteElo "2523"]
[BlackElo "2287"]
[Result "1-0"]
[Round "01"]
[TimeControl "180+2"]
[Date "2023.01.17"]
[WhiteClock "0:01:30"]
[BlackClock "0:00:17"]

1. e4 {[%clk 0:02:59]}  e6 {[%clk 0:02:59]} 2. d4 {[%clk 0:02:59]}  d5 {[%clk 0:02:59]} 3. Nc3 {[%clk 0:03:00]}  Nf6 {[%clk 0:02:56]} 4. Bg5 {[%clk 0:03:00]}  h6 {[%clk 0:02:51]} 5. Bxf6 {[%clk 0:02:58]}  Qxf6 {[%clk 0:02:52]} 6. exd5 {[%clk 0:02:58]}  Bb4 {[%clk 0:02:53]} 7. dxe6 {[%clk 0:02:54]}  Bxe6 {[%clk 0:02:54]} 8. Nf3 {[%clk 0:02:52]}  O-O {[%clk 0:02:53]} 9. Be2 {[%clk 0:02:53]}  c5 {[%clk 0:02:52]} 10. O-O {[%clk 0:02:53]}  Bxc3 {[%clk 0:02:53]} 11. bxc3 {[%clk 0:02:52]}  Rd8 {[%clk 0:02:53]} 12. Ne5 {[%clk 0:02:43]}  Nd7 {[%clk 0:02:49]} 13. Ng4 {[%clk 0:02:36]}  Bxg4 {[%clk 0:02:41]} 14. Bxg4 {[%clk 0:02:37]}  Nb6 {[%clk 0:02:41]} 15. Qf3 {[%clk 0:02:30]}  cxd4 {[%clk 0:02:34]} 16. Qxf6 {[%clk 0:02:29]}  gxf6 {[%clk 0:02:33]} 17. cxd4 {[%clk 0:02:30]}  Rxd4 {[%clk 0:02:33]} 18. Bf3 {[%clk 0:02:31]}  Rc8 {[%clk 0:02:27]} 19. Rac1 {[%clk 0:02:18]}  Rdc4 {[%clk 0:02:23]} 20. Bxb7 {[%clk 0:02:18]}  R8c7 {[%clk 0:02:23]} 21. Bf3 {[%clk 0:02:13]}  Rxc2 {[%clk 0:02:23]} 22. Rxc2 {[%clk 0:02:14]}  Rxc2 {[%clk 0:02:24]} 23. Ra1 {[%clk 0:02:15]}  f5 {[%clk 0:01:59]} 24. Bd1 {[%clk 0:02:13]}  Rb2 {[%clk 0:01:59]} 25. Bb3 {[%clk 0:02:13]}  a5 {[%clk 0:01:59]} 26. g3 {[%clk 0:02:07]}  Kg7 {[%clk 0:01:43]} 27. Kf1 {[%clk 0:01:59]}  Kf6 {[%clk 0:01:31]} 28. Rc1 {[%clk 0:01:58]}  Nd7 {[%clk 0:00:54]} 29. Rc6+ {[%clk 0:01:55]}  Kg7 {[%clk 0:00:40]} 30. Rc2 {[%clk 0:01:48]}  Rxc2 {[%clk 0:00:37]} 31. Bxc2 {[%clk 0:01:49]}  f4 {[%clk 0:00:29]} 32. gxf4 {[%clk 0:01:48]}  Kf6 {[%clk 0:00:24]} 33. Ke2 {[%clk 0:01:48]}  Nc5 {[%clk 0:00:25]} 34. Ke3 {[%clk 0:01:49]}  Ke6 {[%clk 0:00:25]} 35. Kd4 {[%clk 0:01:47]}  Kd6 {[%clk 0:00:26]} 36. f5 {[%clk 0:01:48]}  f6 {[%clk 0:00:26]} 37. Kc4 {[%clk 0:01:47]}  Kc6 {[%clk 0:00:25]} 38. Bd1 {[%clk 0:01:46]}  Kd6 {[%clk 0:00:20]} 39. Kb5 {[%clk 0:01:44]}  Ne4 {[%clk 0:00:20]} 40. Kxa5 {[%clk 0:01:40]}  Nxf2 {[%clk 0:00:20]} 41. Bf3 {[%clk 0:01:31]}  Kc5 {[%clk 0:00:19]} 42. a4 {[%clk 0:01:31]}  Nd3 {[%clk 0:00:19]} 43. Ka6 {[%clk 0:01:30]}  Nb4+ {[%clk 0:00:19]} 44. Kb7 {[%clk 0:01:30]}  Nc2 {[%clk 0:00:19]} 45. a5 {[%clk 0:01:29]}  Ne3 {[%clk 0:00:17]} 46. a6 {[%clk 0:01:29]}  Nxf5 {[%clk 0:00:17]} 47. a7 {[%clk 0:01:30]} 1-0


[Site "https://www.chess.com"]

[Event "Titled Tuesday Blitz January 17 Late 2023"]
[White "Ozates, Tuna"]
[Black "Pap, Gyula"]
[WhiteFideId "6354521"]
[BlackFideId "725323"]
[WhiteElo "2251"]
[BlackElo "2429"]
[Result "1/2-1/2"]
[Round "01"]
[TimeControl "180+2"]
[Date "2023.01.17"]
[WhiteClock "0:00:05"]
[BlackClock "0:00:03"]

1. e4 {[%clk 0:02:56]}  e5 {[%clk 0:03:00]} 2. Nf3 {[%clk 0:02:56]}  Nc6 {[%clk 0:03:01]} 3. Bc4 {[%clk 0:02:57]}  Nf6 {[%clk 0:03:00]} 4. d3 {[%clk 0:02:57]}  Be7 {[%clk 0:03:00]} 5. O-O {[%clk 0:02:58]}  O-O {[%clk 0:03:00]} 6. Bb3 {[%clk 0:02:59]}  d6 {[%clk 0:02:35]} 7. c3 {[%clk 0:02:59]}  Na5 {[%clk 0:02:23]} 8. Bc2 {[%clk 0:02:57]}  c5 {[%clk 0:02:24]} 9. a3 {[%clk 0:02:58]}  Nc6 {[%clk 0:02:23]} 10. b4 {[%clk 0:02:59]}  a6 {[%clk 0:02:20]} 11. Re1 {[%clk 0:02:56]}  Re8 {[%clk 0:02:17]} 12. h3 {[%clk 0:02:57]}  h6 {[%clk 0:02:16]} 13. Nbd2 {[%clk 0:02:57]}  Bf8 {[%clk 0:02:11]} 14. Nb3 {[%clk 0:02:57]}  b5 {[%clk 0:02:06]} 15. d4 {[%clk 0:02:47]}  exd4 {[%clk 0:02:00]} 16. cxd4 {[%clk 0:02:46]}  cxb4 {[%clk 0:01:37]} 17. d5 {[%clk 0:02:47]}  Ne5 {[%clk 0:01:37]} 18. axb4 {[%clk 0:02:44]}  Nxf3+ {[%clk 0:01:38]} 19. Qxf3 {[%clk 0:02:43]}  Nxd5 {[%clk 0:01:38]} 20. Bd2 {[%clk 0:02:27]}  Nb6 {[%clk 0:01:27]} 21. Bc3 {[%clk 0:02:14]}  Bd7 {[%clk 0:01:06]} 22. Rad1 {[%clk 0:02:13]}  Nc4 {[%clk 0:01:05]} 23. e5 {[%clk 0:02:08]}  dxe5 {[%clk 0:00:56]} 24. Qd3 {[%clk 0:02:06]}  e4 {[%clk 0:00:44]} 25. Qxd7 {[%clk 0:02:06]}  Qxd7 {[%clk 0:00:45]} 26. Rxd7 {[%clk 0:02:06]}  Rac8 {[%clk 0:00:46]} 27. Bxe4 {[%clk 0:01:37]}  Nd6 {[%clk 0:00:43]} 28. Nc5 {[%clk 0:01:26]}  a5 {[%clk 0:00:37]} 29. Bd5 {[%clk 0:01:20]}  axb4 {[%clk 0:00:26]} 30. Bxb4 {[%clk 0:01:13]}  Rxe1+ {[%clk 0:00:25]} 31. Bxe1 {[%clk 0:01:11]}  Rxc5 {[%clk 0:00:25]} 32. Bb3 {[%clk 0:00:54]}  Rc8 {[%clk 0:00:20]} 33. Bd5 {[%clk 0:00:38]}  Rc5 {[%clk 0:00:20]} 34. Bb3 {[%clk 0:00:38]}  Rc8 {[%clk 0:00:15]} 35. Bd5 {[%clk 0:00:37]}  Kh8 {[%clk 0:00:04]} 36. Bb4 {[%clk 0:00:31]}  Nc4 {[%clk 0:00:04]} 37. Bxf8 {[%clk 0:00:29]}  Rxf8 {[%clk 0:00:05]} 38. Rxf7 {[%clk 0:00:17]}  Rxf7 {[%clk 0:00:03]} 39. Bxf7 {[%clk 0:00:18]}  Nd6 {[%clk 0:00:03]} 40. Bd5 {[%clk 0:00:17]}  g5 {[%clk 0:00:04]} 41. Kf1 {[%clk 0:00:18]}  Kg7 {[%clk 0:00:05]} 42. Ke2 {[%clk 0:00:18]}  Kf6 {[%clk 0:00:06]} 43. Kd3 {[%clk 0:00:17]}  Ke5 {[%clk 0:00:06]} 44. Bb3 {[%clk 0:00:17]}  Ne4 {[%clk 0:00:06]} 45. Ke3 {[%clk 0:00:17]}  Nc5 {[%clk 0:00:06]} 46. Bc2 {[%clk 0:00:16]}  b4 {[%clk 0:00:07]} 47. g3 {[%clk 0:00:14]}  b3 {[%clk 0:00:07]} 48. Bb1 {[%clk 0:00:14]}  Na4 {[%clk 0:00:07]} 49. f4+ {[%clk 0:00:15]}  gxf4+ {[%clk 0:00:06]} 50. gxf4+ {[%clk 0:00:16]}  Kd5 {[%clk 0:00:07]} 51. Kd3 {[%clk 0:00:10]}  h5 {[%clk 0:00:02]} 52. h4 {[%clk 0:00:08]}  Nc5+ {[%clk 0:00:02]} 53. Kc3 {[%clk 0:00:08]}  Ne6 {[%clk 0:00:03]} 54. Kxb3 {[%clk 0:00:08]}  Nxf4 {[%clk 0:00:04]} 55. Bc2 {[%clk 0:00:06]}  Ne2 {[%clk 0:00:02]} 56. Bd1 {[%clk 0:00:05]}  Nd4+ {[%clk 0:00:02]} 57. Kc3 {[%clk 0:00:05]}  Nf5 {[%clk 0:00:03]} 58. Bxh5 {[%clk 0:00:05]}  Nxh4 {[%clk 0:00:03]} 1/2-1/2


[Site "https://www.chess.com"]

[Event "Titled Tuesday Blitz January 17 Late 2023"]
[White "Hansen, Eric"]
[Black "Gasparyan, David"]
[WhiteFideId "2606771"]
[BlackFideId "13311980"]
[WhiteElo "2609"]
[BlackElo "2142"]
[Result "1-0"]
[Round "01"]
[TimeControl "180+2"]
[Date "2023.01.17"]
[WhiteClock "0:00:24"]
[BlackClock "0:00:08"]

1. b3 {[%clk 0:02:56]}  d5 {[%clk 0:02:57]} 2. Bb2 {[%clk 0:02:56]}  c5 {[%clk 0:02:57]} 3. e3 {[%clk 0:02:57]}  f6 {[%clk 0:02:57]} 4. f4 {[%clk 0:02:56]}  Nc6 {[%clk 0:02:56]} 5. Nf3 {[%clk 0:02:55]}  e6 {[%clk 0:02:55]} 6. g4 {[%clk 0:02:54]}  Nge7 {[%clk 0:02:49]} 7. g5 {[%clk 0:02:53]}  Nf5 {[%clk 0:02:49]} 8. gxf6 {[%clk 0:02:51]}  gxf6 {[%clk 0:02:50]} 9. Rg1 {[%clk 0:02:51]}  Bd7 {[%clk 0:02:48]} 10. Nh4 {[%clk 0:02:33]}  Ng7 {[%clk 0:02:25]} 11. Nc3 {[%clk 0:02:02]}  a6 {[%clk 0:02:20]} 12. f5 {[%clk 0:01:49]}  Qe7 {[%clk 0:02:16]} 13. fxe6 {[%clk 0:01:43]}  Bxe6 {[%clk 0:02:17]} 14. Qf3 {[%clk 0:01:35]}  O-O-O {[%clk 0:02:13]} 15. O-O-O {[%clk 0:01:35]}  Ne5 {[%clk 0:02:02]} 16. Qg2 {[%clk 0:01:32]}  Qd7 {[%clk 0:01:47]} 17. d4 {[%clk 0:01:30]}  Ng4 {[%clk 0:01:43]} 18. Qe2 {[%clk 0:01:24]}  f5 {[%clk 0:01:02]} 19. Na4 {[%clk 0:01:21]}  Qc7 {[%clk 0:00:50]} 20. h3 {[%clk 0:01:21]}  Nf6 {[%clk 0:00:47]} 21. Nxc5 {[%clk 0:01:12]}  Bxc5 {[%clk 0:00:43]} 22. dxc5 {[%clk 0:01:12]}  Rhf8 {[%clk 0:00:43]} 23. c6 {[%clk 0:01:07]}  Nge8 {[%clk 0:00:29]} 24. cxb7+ {[%clk 0:01:01]}  Qxb7 {[%clk 0:00:29]} 25. Qxa6 {[%clk 0:01:00]}  Qxa6 {[%clk 0:00:22]} 26. Bxa6+ {[%clk 0:00:59]}  Kc7 {[%clk 0:00:21]} 27. a4 {[%clk 0:00:57]}  Ne4 {[%clk 0:00:17]} 28. Nf3 {[%clk 0:00:57]}  N8d6 {[%clk 0:00:15]} 29. Rg7+ {[%clk 0:00:54]}  Rf7 {[%clk 0:00:16]} 30. Rdg1 {[%clk 0:00:53]}  Rdd7 {[%clk 0:00:16]} 31. Nd4 {[%clk 0:00:48]}  Nc5 {[%clk 0:00:13]} 32. Rxf7 {[%clk 0:00:45]}  Bxf7 {[%clk 0:00:13]} 33. Bb5 {[%clk 0:00:42]}  Re7 {[%clk 0:00:12]} 34. Ba3 {[%clk 0:00:39]}  Ndb7 {[%clk 0:00:12]} 35. Rg7 {[%clk 0:00:32]}  Kd8 {[%clk 0:00:08]} 36. Nc6+ {[%clk 0:00:31]}  Ke8 {[%clk 0:00:08]} 37. Nxe7+ {[%clk 0:00:31]}  Kxe7 {[%clk 0:00:09]} 38. a5 {[%clk 0:00:26]}  Ke6 {[%clk 0:00:08]} 39. a6 {[%clk 0:00:24]} 1-0


[Site "https://www.chess.com"]

[Event "Titled Tuesday Blitz January 17 Late 2023"]
[White "Jones, Gawain C B"]
[Black "Kaplan, Avi Harrison"]
[WhiteFideId "409561"]
[BlackFideId "30934559"]
[WhiteElo "2618"]
[BlackElo "2146"]
[Result "0-1"]
[Round "01"]
[TimeControl "180+2"]
[Date "2023.01.17"]
[WhiteClock "0:00:06"]
[BlackClock "0:00:11"]

1. Nf3 {[%clk 0:03:00]}  c5 {[%clk 0:02:59]} 2. e4 {[%clk 0:03:00]}  d6 {[%clk 0:02:59]} 3. c3 {[%clk 0:03:00]}  Nf6 {[%clk 0:02:59]} 4. Be2 {[%clk 0:03:00]}  Nc6 {[%clk 0:02:59]} 5. d4 {[%clk 0:03:00]}  cxd4 {[%clk 0:02:59]} 6. cxd4 {[%clk 0:03:01]}  Nxe4 {[%clk 0:02:58]} 7. d5 {[%clk 0:03:02]}  Qa5+ {[%clk 0:02:59]} 8. Nc3 {[%clk 0:03:02]}  Nxc3 {[%clk 0:02:55]} 9. bxc3 {[%clk 0:03:02]}  Ne5 {[%clk 0:02:56]} 10. Nxe5 {[%clk 0:03:03]}  Qxc3+ {[%clk 0:02:56]} 11. Bd2 {[%clk 0:03:03]}  Qxe5 {[%clk 0:02:56]} 12. O-O {[%clk 0:03:04]}  Bd7 {[%clk 0:02:52]} 13. Rb1 {[%clk 0:03:02]}  Qxd5 {[%clk 0:02:35]} 14. Bf3 {[%clk 0:03:01]}  Qf5 {[%clk 0:02:31]} 15. Rxb7 {[%clk 0:02:59]}  Rd8 {[%clk 0:02:22]} 16. Qb3 {[%clk 0:02:39]}  e5 {[%clk 0:02:02]} 17. Rc1 {[%clk 0:02:34]}  Be7 {[%clk 0:02:01]} 18. Rxd7 {[%clk 0:02:33]}  Rxd7 {[%clk 0:01:58]} 19. Rc8+ {[%clk 0:02:16]}  Rd8 {[%clk 0:01:52]} 20. Rc7 {[%clk 0:01:59]}  Qf6 {[%clk 0:00:50]} 21. Bc6+ {[%clk 0:01:48]}  Kf8 {[%clk 0:00:51]} 22. Bd5 {[%clk 0:01:48]}  g5 {[%clk 0:00:44]} 23. Rxa7 {[%clk 0:01:23]}  Kg7 {[%clk 0:00:39]} 24. h3 {[%clk 0:01:07]}  Rb8 {[%clk 0:00:36]} 25. Qg3 {[%clk 0:00:56]}  h6 {[%clk 0:00:34]} 26. Ra3 {[%clk 0:00:51]}  Qg6 {[%clk 0:00:24]} 27. Ra7 {[%clk 0:00:50]}  Qf6 {[%clk 0:00:23]} 28. Kh2 {[%clk 0:00:43]}  Rb2 {[%clk 0:00:22]} 29. Bc3 {[%clk 0:00:35]}  Rc2 {[%clk 0:00:13]} 30. Bb3 {[%clk 0:00:34]}  Re2 {[%clk 0:00:12]} 31. Bc4 {[%clk 0:00:24]}  Re4 {[%clk 0:00:11]} 32. Bd5 {[%clk 0:00:23]}  Re2 {[%clk 0:00:11]} 33. a4 {[%clk 0:00:20]}  Rc8 {[%clk 0:00:09]} 34. Qd3 {[%clk 0:00:08]}  Qxf2 {[%clk 0:00:07]} 35. Bf3 {[%clk 0:00:06]}  Qxa7 {[%clk 0:00:05]} 36. Qxe2 {[%clk 0:00:05]}  Rxc3 {[%clk 0:00:05]} 37. Qe4 {[%clk 0:00:06]}  Qd4 {[%clk 0:00:05]} 38. Qf5 {[%clk 0:00:06]}  Qf4+ {[%clk 0:00:06]} 39. Qxf4 {[%clk 0:00:07]}  gxf4 {[%clk 0:00:07]} 40. Kg1 {[%clk 0:00:06]}  Ra3 {[%clk 0:00:07]} 41. Bc6 {[%clk 0:00:06]}  d5 {[%clk 0:00:08]} 42. Kf2 {[%clk 0:00:07]}  d4 {[%clk 0:00:08]} 43. Ke2 {[%clk 0:00:07]}  Bb4 {[%clk 0:00:09]} 44. Bb5 {[%clk 0:00:07]}  e4 {[%clk 0:00:08]} 45. Bc6 {[%clk 0:00:08]}  Ra2+ {[%clk 0:00:09]} 46. Kd1 {[%clk 0:00:08]}  d3 {[%clk 0:00:09]} 47. Kc1 {[%clk 0:00:08]}  Bc3 {[%clk 0:00:10]} 48. Bxe4 {[%clk 0:00:06]}  Ra1# {[%clk 0:00:11]} 0-1


[Site "https://www.chess.com"]

[Event "Titled Tuesday Blitz January 17 Late 2023"]
[White "Goncalves, Davi Sulzbacher"]
[Black "Ibarra Jerez, Jose Carlos"]
[WhiteFideId "2154510"]
[BlackFideId "2226332"]
[WhiteElo "2282"]
[BlackElo "2563"]
[Result "0-1"]
[Round "01"]
[TimeControl "180+2"]
[Date "2023.01.17"]
[WhiteClock "0:00:09"]
[BlackClock "0:01:48"]

1. d4 {[%clk 0:03:00]}  Nf6 {[%clk 0:02:58]} 2. Nf3 {[%clk 0:03:01]}  g6 {[%clk 0:02:58]} 3. c4 {[%clk 0:03:00]}  d6 {[%clk 0:02:59]} 4. Nc3 {[%clk 0:03:01]}  Bf5 {[%clk 0:03:00]} 5. Qb3 {[%clk 0:02:55]}  b6 {[%clk 0:02:59]} 6. g3 {[%clk 0:02:55]}  Bg7 {[%clk 0:02:59]} 7. Bg2 {[%clk 0:02:55]}  Nc6 {[%clk 0:02:59]} 8. Qa4 {[%clk 0:02:18]}  Bd7 {[%clk 0:02:57]} 9. Qc2 {[%clk 0:02:18]}  O-O {[%clk 0:02:57]} 10. O-O {[%clk 0:02:17]}  Bg4 {[%clk 0:02:40]} 11. e3 {[%clk 0:02:10]}  e5 {[%clk 0:02:38]} 12. dxe5 {[%clk 0:01:53]}  dxe5 {[%clk 0:02:35]} 13. a3 {[%clk 0:01:48]}  Bf5 {[%clk 0:02:30]} 14. Qe2 {[%clk 0:01:46]}  Bd3 {[%clk 0:02:29]} 15. Qe1 {[%clk 0:01:38]}  Bxc4 {[%clk 0:02:28]} 16. Nd2 {[%clk 0:01:34]}  Bxf1 {[%clk 0:02:26]} 17. Bxc6 {[%clk 0:01:35]}  Bh3 {[%clk 0:02:25]} 18. Bxa8 {[%clk 0:01:29]}  Qxa8 {[%clk 0:02:26]} 19. f3 {[%clk 0:01:29]}  h5 {[%clk 0:02:19]} 20. Nde4 {[%clk 0:01:26]}  Nxe4 {[%clk 0:02:15]} 21. Nxe4 {[%clk 0:01:26]}  Bf5 {[%clk 0:02:15]} 22. Nd2 {[%clk 0:00:57]}  e4 {[%clk 0:02:15]} 23. f4 {[%clk 0:00:52]}  Qd5 {[%clk 0:02:12]} 24. Nf1 {[%clk 0:00:50]}  Rd8 {[%clk 0:02:12]} 25. Rb1 {[%clk 0:00:42]}  Qa2 {[%clk 0:02:05]} 26. Bd2 {[%clk 0:00:41]}  Bxb2 {[%clk 0:02:04]} 27. Rd1 {[%clk 0:00:20]}  Bg4 {[%clk 0:02:03]} 28. Rb1 {[%clk 0:00:19]}  Bh3 {[%clk 0:02:03]} 29. Rd1 {[%clk 0:00:15]}  Bc3 {[%clk 0:01:51]} 30. Qf2 {[%clk 0:00:13]}  Bxf1 {[%clk 0:01:49]} 31. Bxc3 {[%clk 0:00:09]}  Qxf2+ {[%clk 0:01:48]} 32. Kxf2 {[%clk 0:00:09]}  Rxd1 {[%clk 0:01:48]} 0-1


[Site "https://www.chess.com"]

[Event "Titled Tuesday Blitz January 17 Late 2023"]
[White "Rojas Salas, Steven"]
[Black "Kadric, Denis"]
[WhiteFideId "3819434"]
[BlackFideId "14403803"]
[WhiteElo "2217"]
[BlackElo "2601"]
[Result "0-1"]
[Round "01"]
[TimeControl "180+2"]
[Date "2023.01.17"]
[WhiteClock "0:00:30"]
[BlackClock "0:00:22"]

1. d4 {[%clk 0:03:00]}  d6 {[%clk 0:02:58]} 2. Nf3 {[%clk 0:03:00]}  Nf6 {[%clk 0:02:57]} 3. c4 {[%clk 0:03:01]}  Nbd7 {[%clk 0:02:57]} 4. Nc3 {[%clk 0:02:55]}  e5 {[%clk 0:02:58]} 5. g3 {[%clk 0:02:55]}  c6 {[%clk 0:02:58]} 6. Bg2 {[%clk 0:02:55]}  e4 {[%clk 0:02:59]} 7. Ng5 {[%clk 0:02:48]}  d5 {[%clk 0:02:59]} 8. h4 {[%clk 0:02:47]}  Bb4 {[%clk 0:02:56]} 9. cxd5 {[%clk 0:02:46]}  cxd5 {[%clk 0:02:57]} 10. O-O {[%clk 0:02:44]}  O-O {[%clk 0:02:56]} 11. Bf4 {[%clk 0:02:38]}  h6 {[%clk 0:02:53]} 12. Nh3 {[%clk 0:02:39]}  Nb6 {[%clk 0:02:54]} 13. Be5 {[%clk 0:02:21]}  Ng4 {[%clk 0:02:40]} 14. Bf4 {[%clk 0:02:17]}  Be6 {[%clk 0:02:31]} 15. f3 {[%clk 0:02:15]}  Nf6 {[%clk 0:02:27]} 16. fxe4 {[%clk 0:02:14]}  Bxc3 {[%clk 0:02:28]} 17. bxc3 {[%clk 0:02:12]}  Nxe4 {[%clk 0:02:28]} 18. Nf2 {[%clk 0:01:53]}  Nxc3 {[%clk 0:02:25]} 19. Qd3 {[%clk 0:01:53]}  Rc8 {[%clk 0:02:19]} 20. Bd2 {[%clk 0:01:35]}  Nca4 {[%clk 0:02:12]} 21. Qb3 {[%clk 0:01:20]}  Qd7 {[%clk 0:01:57]} 22. Nd3 {[%clk 0:01:15]}  Nc4 {[%clk 0:01:57]} 23. Bf4 {[%clk 0:01:04]}  f6 {[%clk 0:01:54]} 24. Rab1 {[%clk 0:00:59]}  b6 {[%clk 0:01:54]} 25. Qb5 {[%clk 0:00:47]}  Rfd8 {[%clk 0:01:42]} 26. Qxd7 {[%clk 0:00:43]}  Rxd7 {[%clk 0:01:43]} 27. Rfc1 {[%clk 0:00:44]}  a5 {[%clk 0:01:29]} 28. h5 {[%clk 0:00:38]}  Bg4 {[%clk 0:01:21]} 29. Bf3 {[%clk 0:00:38]}  Bxf3 {[%clk 0:01:19]} 30. exf3 {[%clk 0:00:39]}  Re8 {[%clk 0:01:18]} 31. Kf2 {[%clk 0:00:39]}  Rde7 {[%clk 0:01:17]} 32. Re1 {[%clk 0:00:33]}  Nc3 {[%clk 0:01:12]} 33. Rxe7 {[%clk 0:00:18]}  Rxe7 {[%clk 0:01:13]} 34. Rb3 {[%clk 0:00:19]}  Nxa2 {[%clk 0:00:59]} 35. Rb5 {[%clk 0:00:19]}  Nc3 {[%clk 0:00:54]} 36. Rb3 {[%clk 0:00:19]}  Ne2 {[%clk 0:00:51]} 37. Rb5 {[%clk 0:00:17]}  Nxd4 {[%clk 0:00:38]} 38. Rxd5 {[%clk 0:00:17]}  Ne6 {[%clk 0:00:33]} 39. Bc1 {[%clk 0:00:16]}  Rc7 {[%clk 0:00:30]} 40. Ke2 {[%clk 0:00:10]}  Kf7 {[%clk 0:00:31]} 41. Nf4 {[%clk 0:00:09]}  Nxf4+ {[%clk 0:00:30]} 42. Bxf4 {[%clk 0:00:10]}  Re7+ {[%clk 0:00:25]} 43. Kf2 {[%clk 0:00:10]}  Ne5 {[%clk 0:00:25]} 44. Be3 {[%clk 0:00:08]}  Rb7 {[%clk 0:00:24]} 45. Rb5 {[%clk 0:00:08]}  Nc4 {[%clk 0:00:25]} 46. Bd4 {[%clk 0:00:09]}  Ke6 {[%clk 0:00:25]} 47. g4 {[%clk 0:00:08]}  Kd6 {[%clk 0:00:24]} 48. f4 {[%clk 0:00:09]}  Kc6 {[%clk 0:00:24]} 49. Rb1 {[%clk 0:00:09]}  a4 {[%clk 0:00:24]} 50. Bc3 {[%clk 0:00:08]}  a3 {[%clk 0:00:23]} 51. Bb4 {[%clk 0:00:05]}  a2 {[%clk 0:00:22]} 52. Ra1 {[%clk 0:00:04]}  Ra7 {[%clk 0:00:23]} 53. Bf8 {[%clk 0:00:04]}  Kb5 {[%clk 0:00:22]} 54. Bxg7 {[%clk 0:00:04]}  Rxg7 {[%clk 0:00:22]} 55. Rxa2 {[%clk 0:00:05]}  Rxg4 {[%clk 0:00:22]} 56. Kf3 {[%clk 0:00:06]}  Rh4 {[%clk 0:00:22]} 57. Rh2 {[%clk 0:00:06]}  Rxh2 {[%clk 0:00:22]} 58. Kg4 {[%clk 0:00:04]}  Ne3+ {[%clk 0:00:22]} 59. Kf3 {[%clk 0:00:04]}  Rxh5 {[%clk 0:00:23]} 60. Ke4 {[%clk 0:00:05]}  Rh3 {[%clk 0:00:23]} 61. Kd3 {[%clk 0:00:06]}  Kc5 {[%clk 0:00:22]} 62. Ke4 {[%clk 0:00:07]}  Kd6 {[%clk 0:00:22]} 63. f5 {[%clk 0:00:07]}  Rh4+ {[%clk 0:00:22]} 64. Kf3 {[%clk 0:00:07]}  Ke5 {[%clk 0:00:22]} 65. Ke2 {[%clk 0:00:08]}  Nd5 {[%clk 0:00:22]} 66. Kd3 {[%clk 0:00:09]}  Rd4+ {[%clk 0:00:22]} 67. Kc2 {[%clk 0:00:09]}  Kxf5 {[%clk 0:00:20]} 68. Kb3 {[%clk 0:00:10]}  Rb4+ {[%clk 0:00:20]} 69. Ka2 {[%clk 0:00:11]}  Ke4 {[%clk 0:00:20]} 70. Ka3 {[%clk 0:00:12]}  Kd3 {[%clk 0:00:20]} 71. Ka2 {[%clk 0:00:13]}  Kc3 {[%clk 0:00:20]} 72. Ka3 {[%clk 0:00:14]}  h5 {[%clk 0:00:20]} 73. Ka2 {[%clk 0:00:15]}  Rb3 {[%clk 0:00:20]} 74. Ka1 {[%clk 0:00:15]}  h4 {[%clk 0:00:21]} 75. Ka2 {[%clk 0:00:16]}  h3 {[%clk 0:00:22]} 76. Ka1 {[%clk 0:00:17]}  h2 {[%clk 0:00:23]} 77. Ka2 {[%clk 0:00:18]}  f5 {[%clk 0:00:24]} 78. Ka1 {[%clk 0:00:18]}  f4 {[%clk 0:00:24]} 79. Ka2 {[%clk 0:00:19]}  f3 {[%clk 0:00:25]} 80. Ka1 {[%clk 0:00:20]}  f2 {[%clk 0:00:26]} 81. Ka2 {[%clk 0:00:21]}  b5 {[%clk 0:00:27]} 82. Ka1 {[%clk 0:00:22]}  b4 {[%clk 0:00:28]} 83. Ka2 {[%clk 0:00:23]}  Nf4 {[%clk 0:00:28]} 84. Ka1 {[%clk 0:00:24]}  Nd3 {[%clk 0:00:28]} 85. Ka2 {[%clk 0:00:24]}  Ne1 {[%clk 0:00:27]} 86. Ka1 {[%clk 0:00:25]}  f1=Q {[%clk 0:00:26]} 87. Ka2 {[%clk 0:00:26]}  h1=Q {[%clk 0:00:27]} 88. Ka1 {[%clk 0:00:27]}  Qd5 {[%clk 0:00:24]} 89. Ka2 {[%clk 0:00:28]}  Qdf7 {[%clk 0:00:21]} 90. Ka1 {[%clk 0:00:29]}  Nc2+ {[%clk 0:00:21]} 91. Ka2 {[%clk 0:00:30]}  Ra3# {[%clk 0:00:22]} 0-1


[Site "https://www.chess.com"]

[Event "Titled Tuesday Blitz January 17 Late 2023"]
[White "Zhigalko, Sergei"]
[Black "Radovanovic, Dusan"]
[WhiteFideId "13502956"]
[BlackFideId "926868"]
[WhiteElo "2572"]
[BlackElo "2311"]
[Result "1-0"]
[Round "01"]
[TimeControl "180+2"]
[Date "2023.01.17"]
[WhiteClock "0:02:56"]
[BlackClock "0:02:33"]

1. e4 {[%clk 0:03:00]}  c5 {[%clk 0:02:59]} 2. Nf3 {[%clk 0:03:00]}  d6 {[%clk 0:02:58]} 3. d4 {[%clk 0:03:00]}  cxd4 {[%clk 0:02:57]} 4. Qxd4 {[%clk 0:03:01]}  a6 {[%clk 0:02:53]} 5. Bc4 {[%clk 0:03:00]}  Nc6 {[%clk 0:02:47]} 6. Qd3 {[%clk 0:02:59]}  e6 {[%clk 0:02:46]} 7. Nc3 {[%clk 0:02:58]}  Nf6 {[%clk 0:02:45]} 8. Bf4 {[%clk 0:02:58]}  Qc7 {[%clk 0:02:42]} 9. O-O-O {[%clk 0:02:58]}  Ne5 {[%clk 0:02:42]} 10. Nxe5 {[%clk 0:02:58]}  dxe5 {[%clk 0:02:43]} 11. Bxe5 {[%clk 0:02:58]}  Qa5 {[%clk 0:02:33]} 12. Nb5 {[%clk 0:02:56]} 1-0


[Site "https://www.chess.com"]